bitfinex/quotes_ETHUSD_20260113
["timestamp","ask_amount","ask_price","bid_price","bid_amount"]
[1768339645899,1.74630623,3207.5,3206.5,2.15225287]
[1768339646115,1.74630623,3207.4,3206.5,2.37059702]
[1768339646398,3.11788731,3207.3,3206.5,2.37059702]
[1768339646711,1.74630623,3207.4,3206.6,1.90825287]
[1768339647040,4.86410867,3207.4,3206.6,1.90825287]
[1768339647210,1.74630623,3207.4,3206.6,1.90825287]
[1768339647410,1.74630623,3207.4,3206.7,0.70299684]
[1768339647840,4.86409998,3207.4,3206.7,0.70299684]
[1768339648930,1.74630623,3207.3,3206.7,0.70299684]
[1768339649097,1.74630623,3207.3,3206.5,0.46234415]
[1768339649720,1.74630623,3207.3,3206.3,14.5]
[1768339649932,1.74630623,3207.1,3206.3,14.5]
[1768339650232,1.74630623,3207.1,3206.4,0.244]
[1768339650403,1.74630623,3207.1,3206.5,0.244]
[1768339650826,1.74630623,3207.0,3206.5,0.244]
[1768339653833,1.74630623,3207.0,3206.2,1.90925287]
[1768339654025,4.86449042,3207.0,3206.6,0.244]
[1768339654533,1.74630623,3206.9,3206.2,0.001]
[1768339654724,1.74630623,3206.9,3206.3,0.244]
[1768339655335,4.86463904,3206.9,3206.3,0.244]
[1768339655734,3.11822285,3207.0,3206.3,0.244]
[1768339656033,1.81125347,3207.1,3206.4,2.45413523]
[1768339656335,0.002,3206.8,3206.4,2.45413523]
[1768339658340,4.93137748,3207.1,3206.6,1.78518008]
[1768339658341,0.002,3207.1,3206.6,1.78518008]
[1768339658640,0.002,3207.1,3206.6,6.4445515]
[1768339658942,0.002,3207.1,3206.7,0.64445515]
[1768339659138,0.002,3207.1,3206.8,0.244]
[1768339660046,0.002,3207.1,3206.8,2.02918008]
[1768339661349,1.81125347,3207.6,3206.9,4.65937142]
[1768339662637,0.002,3207.7,3207.0,1.78518008]
[1768339662835,0.002,3207.7,3207.3,1.78518008]
[1768339663064,0.5364101,3208.1,3207.9,0.10016501]
[1768339663231,0.002,3208.4,3207.8,0.48741148]
[1768339663425,0.002,3208.4,3207.9,0.244]
[1768339666524,0.002,3208.4,3207.9,0.79377184]
[1768339666720,0.002,3208.4,3208.0,4.65937142]
[1768339667160,0.00080208,3208.9,3208.4,0.10913282]
[1768339667368,1.81325347,3209.3,3208.5,0.244]
[1768339667664,1.81325347,3209.3,3208.6,0.35313282]
[1768339667665,0.002,3209.3,3208.6,0.35313282]
[1768339667867,0.002,3209.3,3208.6,0.244]
[1768339668431,1.99457882,3209.3,3208.5,4.66017358]
[1768339668631,1.99457882,3209.3,3208.5,0.00080216]
[1768339668957,0.18332535,3209.3,3208.8,4.65937142]
[1768339669131,0.002,3209.3,3208.8,4.65937142]
[1768339669468,1.81325347,3209.3,3208.9,0.244]
[1768339670053,1.81125347,3209.2,3208.9,0.244]
[1768339673864,1.81125347,3209.2,3209.0,0.244]
[1768339677538,1.32408469,3209.2,3209.0,0.244]
[1768339678269,1.81125347,3209.1,3209.0,0.244]
[1768339678977,1.81125347,3209.1,3208.5,0.00080216]
[1768339679149,1.81125347,3209.1,3208.6,0.244]
[1768339680601,1.81125347,3209.1,3208.7,0.244]
[1768339680741,0.002,3208.9,3208.7,0.244]
[1768339680940,1.81125347,3209.0,3208.7,0.244]
[1768339685058,1.81125347,3209.0,3208.5,0.00080216]
[1768339685264,1.81125347,3209.0,3208.6,0.244]
[1768339687061,1.86650144,3208.9,3208.5,0.00080216]
[1768339687374,1.86650144,3208.9,3208.6,0.244]
[1768339687375,1.86650144,3208.8,3208.6,0.244]
[1768339688072,1.86650144,3208.8,3208.6,0.21688015]
[1768339688264,1.86650144,3208.8,3208.6,0.19694745]
[1768339688878,1.86650144,3208.8,3208.5,0.00080216]
[1768339689173,1.86650144,3208.8,3208.6,0.244]
[1768339690054,4.98299226,3208.8,3208.6,0.244]
[1768339690251,5.79678814,3208.8,3208.6,0.244]
[1768339690440,2.68029732,3208.8,3208.6,0.244]
[1768339690652,1.86650144,3208.8,3208.6,0.244]
[1768339691059,4.98293794,3208.8,3208.7,0.244]
[1768339691958,4.98293794,3208.8,3208.5,0.00080216]
[1768339692169,4.98293794,3208.8,3208.6,0.244]
[1768339692386,5.77326992,3208.8,3208.7,0.244]
[1768339692759,5.77326992,3208.8,3208.5,0.00080216]
[1768339693088,0.002,3208.7,3208.5,0.00080216]
[1768339693305,0.002,3208.7,3208.6,0.244]
[1768339696406,0.002,3208.7,3208.5,0.00080216]
[1768339696608,0.002,3208.7,3208.6,0.244]
[1768339698507,1.93969376,3208.7,3208.6,0.244]
[1768339700724,0.002,3208.7,3208.6,0.244]
[1768339702830,0.002,3208.7,3208.5,0.24480216]
[1768339703627,0.002,3208.7,3208.5,0.00080216]
[1768339703800,0.002,3208.7,3208.5,0.24480216]
[1768339706325,1.93969376,3208.7,3208.5,0.24480216]
[1768339707452,0.002,3208.7,3208.5,0.24480216]
[1768339708240,0.002,3208.7,3208.5,0.00080216]
[1768339708400,0.002,3208.7,3208.5,0.24480216]
[1768339708916,1.93969376,3208.7,3208.5,0.24480216]
[1768339709927,1.93969376,3208.7,3208.5,0.00080216]
[1768339710134,1.93969376,3208.7,3208.5,0.24480216]
[1768339710633,0.002,3208.7,3208.5,0.24480216]
[1768339712433,1.93969376,3208.7,3208.5,0.00080216]
[1768339712734,0.19396938,3208.6,3208.5,0.00080216]
[1768339715808,1.81330243,3208.5,3208.4,0.244]
[1768339716668,0.19396938,3208.6,3207.7,5.25807703]
[1768339716669,0.19396938,3208.6,3208.0,0.244]
[1768339716876,0.19396938,3208.6,3208.0,1.65207703]
[1768339718574,0.19396938,3208.6,3208.1,0.244]
[1768339718575,1.81330243,3208.5,3208.1,0.244]
[1768339718961,3.31060903,3208.6,3208.1,0.244]
[1768339719997,0.19396938,3208.6,3208.1,0.244]
[1768339720168,3.31059847,3208.6,3208.1,0.244]
[1768339721204,1.81330243,3208.5,3208.1,0.244]
[1768339721604,3.31059847,3208.6,3208.1,0.244]
[1768339723222,5.1239009,3208.6,3208.1,0.244]
[1768339725900,1.81330243,3208.5,3208.0,14.5]
[1768339726107,1.81330243,3208.5,3208.0,14.744]
[1768339726401,1.81330243,3208.5,3208.0,0.244]
[1768339727036,4.93006541,3208.5,3208.0,0.244]
[1768339727182,1.81330243,3208.5,3208.0,0.244]
[1768339727583,3.11670022,3208.6,3208.0,0.244]
[1768339727815,3.55298938,3208.6,3208.0,0.245]
[1768339729409,5.36629181,3208.6,3208.0,0.245]
[1768339729987,3.55298938,3208.6,3208.0,1.6650762]
[1768339730402,3.55298938,3208.6,3208.0,16.1650762]
[1768339732392,3.11852877,3208.7,3208.0,16.1650762]
[1768339733427,3.11852877,3208.7,3208.0,1.6650762]
[1768339733794,3.11852877,3208.7,3208.0,16.1650762]
[1768339733995,6.23505754,3208.7,3208.0,16.1650762]
[1768339734761,1.81530243,3208.7,3208.0,14.745]
[1768339735450,0.002,3208.7,3208.1,1.42079988]
[1768339736113,1.81530243,3208.7,3208.1,0.244]
[1768339738555,3.11662407,3208.6,3208.1,0.244]
[1768339739164,1.81330243,3208.5,3208.1,0.244]
[1768339739615,1.81330243,3208.5,3208.3,0.001]
[1768339739815,0.002,3208.4,3208.3,0.001]
[1768339742227,0.002,3208.4,3208.0,15.92279584]
[1768339742855,0.002,3208.4,3208.0,14.501]
[1768339743470,1.81530243,3208.4,3208.0,14.501]
[1768339744168,1.81330243,3208.0,3207.5,0.244]
[1768339744336,1.81330243,3208.0,3207.6,0.244]
[1768339744536,1.81330243,3208.0,3207.3,17.27899356]
[1768339744867,1.81330243,3208.0,3207.4,0.244]
[1768339745572,1.95369586,3207.9,3207.4,0.244]
[1768339746742,1.95369586,3207.8,3207.4,0.244]
[1768339748490,1.95369586,3207.8,3207.3,2.77899356]
[1768339748782,1.95369586,3207.7,3207.3,2.77899356]
[1768339750081,1.95369586,3208.3,3207.3,2.77899356]
[1768339750748,1.95369586,3208.2,3207.3,2.77899356]
[1768339750973,1.95369586,3208.0,3207.3,2.77899356]
[1768339751556,1.95369586,3208.0,3207.3,3.02299356]
[1768339752481,1.95369586,3208.0,3207.6,0.001]
[1768339753287,5.07091043,3208.0,3207.6,0.001]
[1768339754087,3.11695965,3208.3,3207.6,1.42442347]
[1768339754398,1.95369586,3208.2,3207.6,0.001]
[1768339754793,1.95369586,3208.1,3207.6,0.245]
[1768339755011,5.07088313,3208.1,3207.6,0.245]
[1768339755183,1.95369586,3208.0,3207.6,0.245]
[1768339756511,1.95369586,3208.0,3207.6,0.001]
[1768339757507,5.07092607,3208.0,3207.6,0.001]
[1768339757700,1.88031738,3207.9,3207.6,0.001]
[1768339762135,1.91895118,3207.8,3207.6,0.001]
[1768339762444,1.88031738,3207.8,3207.6,0.001]
[1768339763537,1.88031738,3207.7,3207.3,2.77899356]
[1768339764680,1.88031738,3207.5,3207.3,2.77899356]
[1768339766349,1.88031738,3207.5,3206.6,1.42473475]
[1768339766518,1.88031738,3207.3,3206.7,0.244]
[1768339766726,1.88031738,3207.3,3206.6,1.42473475]
[1768339767028,1.88031738,3207.3,3206.7,0.244]
[1768339768473,1.88031738,3207.3,3206.5,1.42507454]
[1768339768616,1.88031738,3207.3,3206.8,0.244]
[1768339769724,1.88031738,3207.5,3206.8,0.244]
[1768339773338,4.99782299,3207.7,3206.8,1.66968059]
[1768339773648,4.99782299,3207.7,3206.8,1.42568059]
[1768339773963,1.88031738,3207.6,3206.8,1.66968059]
[1768339774167,1.88031738,3207.6,3206.9,1.59275248]
[1768339774366,1.88031738,3207.6,3206.2,0.001]
[1768339774544,1.88031738,3207.3,3206.2,1.42678442]
[1768339774744,1.88031738,3207.2,3206.2,1.42678442]
[1768339775146,1.95006978,3207.4,3206.2,1.42678442]
[1768339775349,1.95006978,3207.4,3206.3,14.5]
[1768339775547,1.95006978,3207.4,3206.5,1.42599246]
[1768339775863,1.95006978,3207.4,3207.1,0.001]
[1768339776443,1.95006978,3207.3,3207.1,0.001]
[1768339776754,1.95006978,3207.2,3207.1,0.001]
[1768339778985,5.06790565,3207.4,3207.1,0.001]
[1768339779283,1.95006978,3207.3,3207.1,0.001]
[1768339781874,3.36273407,3207.5,3207.1,0.001]
[1768339781875,5.31280385,3207.5,3207.1,0.001]
[1768339782267,1.95006978,3207.4,3207.1,0.001]
[1768339786497,1.95006978,3207.3,3207.1,0.001]
[1768339792674,1.95006978,3207.5,3207.1,0.001]
[1768339794787,5.06778488,3207.5,3207.1,0.001]
[1768339795210,1.95006978,3207.5,3207.1,0.001]
[1768339795514,5.0677734,3207.5,3207.1,0.001]
[1768339796927,1.95006978,3207.5,3207.1,0.001]
[1768339797279,5.06776682,3207.5,3207.1,0.001]
[1768339800314,1.95006978,3207.4,3207.1,0.001]
[1768339802101,8.18390078,3208.3,3207.1,1.40297085]
[1768339802284,1.95006978,3208.0,3207.2,0.244]
[1768339802689,1.95006978,3208.0,3207.1,0.001]
[1768339802892,1.98870358,3208.0,3207.1,0.001]
[1768339803690,1.98870358,3208.0,3207.2,0.16459303]
[1768339803930,1.95006978,3208.0,3207.1,0.001]
[1768339804082,1.98870358,3208.0,3207.1,0.001]
[1768339804288,1.95006978,3207.8,3207.1,0.001]
[1768339806313,1.85736806,3207.4,3207.1,0.001]
[1768339807090,1.85736806,3208.2,3207.5,0.97081836]
[1768339807293,1.85736806,3208.2,3207.4,1.39596547]
[1768339808493,1.85736806,3208.2,3207.2,0.45469274]
[1768339808698,1.85736806,3208.1,3207.3,0.244]
[1768339808929,1.85736806,3208.1,3207.3,1.63898005]
[1768339809119,1.85736806,3208.1,3207.4,0.16389801]
[1768339809815,1.85736806,3208.1,3207.4,0.16489801]
[1768339810017,0.002,3207.5,3207.4,0.16489801]
[1768339810223,0.002,3207.8,3207.4,0.16489801]
[1768339810423,1.85736806,3208.3,3207.4,1.39402861]
[1768339811744,1.85736806,3208.3,3207.4,1.63802861]
[1768339811905,0.002,3208.4,3207.9,1.39114652]
[1768339812095,1.85817022,3208.9,3207.9,1.39114652]
[1768339812432,1.85736806,3208.6,3208.0,0.60525527]
[1768339812605,1.85736806,3208.6,3207.9,0.244]
[1768339813002,4.97400387,3208.6,3207.9,0.244]
[1768339813200,1.85736806,3208.5,3207.6,14.5]
[1768339813436,1.85736806,3208.3,3207.4,0.245]
[1768339814037,1.85736806,3208.3,3207.5,1.3893174]
[1768339814240,1.85736806,3208.3,3207.6,1.61343174]
[1768339814445,1.85736806,3208.3,3207.6,3.00274914]
[1768339815119,4.97434267,3208.3,3207.6,3.00274914]
[1768339815321,4.97434267,3208.3,3207.6,1.3893174]
[1768339815646,4.97434267,3208.3,3207.4,1.38942068]
[1768339816116,1.89600186,3208.2,3207.4,1.38942068]
[1768339816832,1.85736806,3208.2,3207.4,1.38942068]
[1768339817036,4.97439176,3208.2,3207.4,1.38942068]
[1768339817338,1.85736806,3208.2,3207.4,1.38942068]
[1768339817538,1.85736806,3208.2,3207.5,0.16334207]
[1768339819042,4.97439382,3208.2,3207.5,0.16334207]
[1768339819440,1.85344208,3208.1,3207.5,0.16334207]
[1768339820035,1.85344208,3208.1,3207.4,0.001]
[1768339822039,1.85344208,3208.0,3207.4,0.001]
[1768339822653,1.85344208,3207.7,3207.4,0.001]
[1768339823142,3.36166081,3208.6,3207.4,0.001]
[1768339823143,1.85544208,3208.7,3207.9,1.38092298]
[1768339823345,1.85544208,3208.7,3208.0,0.244]
[1768339823644,1.85544208,3208.7,3208.2,1.38092298]
[1768339825044,1.85344208,3208.8,3208.6,1.37933932]
[1768339825249,0.002,3209.0,3208.7,1.37933932]
[1768339825423,0.002,3209.0,3208.8,1.99065199]
[1768339826419,0.002,3209.0,3208.6,1.99065199]
[1768339826614,0.002,3209.0,3208.6,2.21419741]
[1768339826951,0.002,3209.0,3208.6,0.22354542]
[1768339827128,0.002,3209.0,3208.5,1.99145423]
[1768339827728,0.002,3209.4,3208.5,1.99145423]
[1768339827729,3.279,3211.0,3210.3,1.99065199]
[1768339827925,0.245,3210.9,3210.3,1.0194472]
[1768339828249,0.245,3210.8,3209.8,14.5]
[1768339828435,0.245,3210.8,3209.9,1.6490652]
[1768339829016,0.002,3211.5,3210.0,4.66140616]
[1768339829346,0.245,3211.4,3210.1,14.5]
[1768339829545,2.09844208,3211.4,3210.2,1.99065199]
[1768339830123,0.245,3211.3,3210.2,1.99065199]
[1768339830444,0.245,3211.2,3210.2,1.99065199]
[1768339830641,0.245,3211.1,3210.3,3.63971719]
[1768339831343,0.0386338,3211.0,3210.3,1.6490652]
[1768339831846,0.245,3211.1,3210.2,1.99065199]
[1768339833019,2.09844208,3211.1,3210.2,1.99065199]
[1768339833235,5.21266227,3211.1,3210.1,14.5]
[1768339833731,2.09844208,3211.1,3210.1,14.5]
[1768339833918,2.09844208,3211.1,3210.0,1.99065199]
[1768339834119,2.61969963,3211.1,3210.0,2.18971719]
[1768339834653,2.09844208,3211.1,3210.0,2.18971719]
[1768339835153,0.002,3210.8,3210.0,2.18971719]
[1768339835925,0.002,3211.1,3210.7,1.98630741]
[1768339836456,0.002,3211.1,3210.1,1.98630741]
[1768339836457,0.245,3211.0,3210.1,1.98630741]
[1768339836638,2.23724919,3211.0,3210.1,1.98630741]
[1768339836844,2.23724919,3211.0,3210.1,2.20484467]
[1768339837360,0.245,3211.0,3210.1,2.20484467]
[1768339837736,2.23724919,3211.0,3210.1,0.21853726]
[1768339837952,2.23724919,3211.0,3209.8,16.748025]
[1768339838725,2.23724919,3211.0,3209.9,4.66140616]
[1768339841560,2.23724919,3211.0,3210.0,14.5]
[1768339842857,1.99224919,3211.0,3210.0,16.48630741]
[1768339843067,0.244,3210.9,3210.1,6.64771357]
[1768339843362,2.23624919,3210.9,3210.2,2.11477136]
[1768339844665,0.244,3210.8,3210.2,2.11477136]
[1768339844963,0.002,3211.5,3211.0,0.50856389]
[1768339845123,0.002,3211.5,3211.0,0.45763964]
[1768339845329,0.244,3211.4,3211.0,0.45763964]
[1768339845829,4.90540616,3211.4,3210.6,1.98630741]
[1768339846052,0.244,3211.4,3210.6,1.98630741]
[1768339846259,0.84658708,3211.3,3210.6,1.98630741]
[1768339846454,3.96061885,3211.3,3210.6,1.98630741]
[1768339846782,5.10805997,3211.5,3210.6,1.98630741]
[1768339846783,0.002,3211.5,3210.6,1.98630741]
[1768339846931,0.244,3211.2,3210.6,1.98630741]
[1768339847333,0.002,3211.5,3210.6,1.98630741]
[1768339847555,0.244,3211.4,3210.8,1.98630741]
[1768339847736,0.002,3211.0,3210.8,1.98630741]
[1768339847937,0.002,3211.5,3211.0,1.98630741]
[1768339848167,0.244,3211.4,3211.0,1.98630741]
[1768339848756,0.244,3211.4,3210.5,1.98630741]
[1768339850268,0.002,3211.5,3210.5,1.98630741]
[1768339850468,0.244,3211.3,3210.5,1.98630741]
[1768339850670,0.244,3211.3,3210.7,1.98630741]
[1768339851379,0.002,3211.5,3210.7,1.98630741]
[1768339851567,0.244,3211.4,3210.7,1.98630741]
[1768339851896,0.002,3211.7,3211.5,1.98630741]
[1768339852050,0.002,3211.7,3211.3,1.76550704]
[1768339852051,0.244,3211.6,3211.3,1.76550704]
[1768339852360,0.244,3211.5,3210.9,1.76550704]
[1768339852683,0.002,3211.7,3211.3,14.5]
[1768339852971,0.244,3211.6,3211.5,0.02164624]
[1768339853172,2.23624919,3211.6,3211.5,0.02164624]
[1768339853544,0.244,3211.6,3211.5,0.02164624]
[1768339853765,0.24199866,3211.6,3211.5,0.02164624]
[1768339853959,0.21998392,3211.6,3211.5,0.02164624]
[1768339854161,0.21798258,3211.6,3211.5,0.02164624]
[1768339854547,0.244,3211.6,3211.5,0.02164624]
[1768339859083,0.244,3211.6,3210.9,1.98630741]
[1768339859286,2.46027411,3211.6,3210.7,16.48630741]
[1768339859469,2.46027411,3211.6,3211.0,0.001]
[1768339860495,5.5740119,3211.6,3211.0,0.001]
[1768339860690,1.99224919,3211.5,3210.5,1.98630741]
[1768339860982,1.99224919,3211.3,3210.4,0.001]
[1768339862083,6.22795732,3211.4,3210.5,1.98630741]
[1768339862268,0.244,3211.3,3210.6,2.01745423]
[1768339862488,0.244,3211.3,3210.6,1.98630741]
[1768339862994,0.244,3211.3,3210.4,1.98730741]
[1768339863159,2.23624919,3211.3,3210.4,1.98730741]
[1768339863797,0.244,3211.2,3210.4,2.18603815]
[1768339864253,2.23624919,3211.2,3210.4,2.18603815]
[1768339864992,2.23624919,3211.2,3210.4,0.19973074]
[1768339866554,2.23624919,3211.2,3210.4,14.501]
[1768339866750,2.02706274,3211.1,3210.4,14.501]
[1768339867385,2.02706274,3211.1,3210.4,0.001]
[1768339869086,2.02706274,3211.0,3210.4,0.001]
[1768339871059,2.02706274,3211.0,3210.7,0.001]
[1768339877406,2.03939782,3210.9,3210.7,0.001]
[1768339882002,2.07803162,3210.8,3209.4,2.14531157]
[1768339882334,2.03939782,3210.5,3209.4,4.03989188]
[1768339882628,2.03939782,3210.5,3209.5,0.40398919]
[1768339883219,2.28339782,3210.4,3209.5,0.40398919]
[1768339885135,2.03939782,3210.3,3209.5,0.40398919]
[1768339886006,3.11473381,3210.6,3209.5,2.2985695]
[1768339886230,0.244,3210.5,3209.7,1.89458031]
[1768339886607,2.28339782,3210.5,3209.7,1.89458031]
[1768339887442,2.03939782,3210.5,3209.7,1.89458031]
[1768339887737,0.244,3210.4,3209.7,1.89458031]
[1768339888648,2.03939782,3210.5,3209.8,1.92573489]
[1768339888943,0.244,3210.4,3210.1,1.89458031]
[1768339889146,0.244,3210.3,3210.2,0.0311507]
[1768339889454,3.11420791,3211.1,3210.3,1.89458031]
[1768339889755,0.244,3211.0,3210.3,1.89458031]
[1768339891334,3.35831269,3211.0,3210.3,1.89458031]
[1768339894253,0.002,3210.7,3210.3,1.89458031]
[1768339894918,0.244,3210.6,3210.3,1.89458031]
[1768339895528,0.002,3210.7,3210.0,14.5]
[1768339895852,0.002,3210.7,3210.1,1.46925735]
[1768339895853,4.8938695,3210.5,3210.1,1.46925735]
[1768339896054,4.8938695,3210.5,3209.9,2.09991077]
[1768339896305,0.244,3210.5,3209.9,2.09991077]
[1768339898258,2.31708238,3210.5,3209.9,0.19257349]
[1768339898568,5.43187577,3210.5,3209.9,0.19257349]
[1768339898920,2.31708238,3210.5,3209.9,0.19257349]
[1768339900650,2.31708238,3210.5,3209.6,0.44438811]
[1768339900835,2.31708238,3210.5,3209.6,2.35172539]
[1768339903448,2.31708238,3210.5,3209.6,0.44438811]
[1768339904073,2.31708238,3210.5,3209.6,2.35172539]
[1768339905065,2.31708238,3210.5,3209.6,0.44438811]
[1768339905289,2.31708238,3210.5,3209.7,1.49443881]
[1768339906109,2.31708238,3210.5,3209.9,0.001]
[1768339907255,2.35571618,3210.5,3209.9,0.001]
[1768339907463,2.31708238,3210.5,3209.9,0.001]
[1768339910390,5.43187999,3210.5,3209.9,0.001]
[1768339910691,2.07308238,3210.4,3209.9,0.001]
[1768339911394,2.07308238,3210.2,3209.9,0.001]
[1768339911905,2.07308238,3210.0,3209.4,2.14531157]
[1768339912086,0.244,3209.9,3209.4,2.14531157]
[1768339912482,2.31708238,3209.9,3209.4,2.14531157]
[1768339914697,0.244,3209.9,3209.4,2.14531157]
[1768339914865,0.244,3209.9,3209.5,0.40526488]
[1768339916503,2.31708238,3209.9,3209.5,0.40526488]
[1768339917002,2.31708238,3209.9,3209.4,2.14531157]
[1768339917577,2.31708238,3209.9,3209.8,0.001]
[1768339917808,2.31908238,3209.9,3209.8,0.001]
[1768339920715,0.002,3209.9,3209.8,0.001]
[1768339921021,0.246,3209.9,3209.8,0.001]
[1768339927312,0.246,3209.9,3209.4,2.14531157]
[1768339927814,1.94877537,3209.8,3208.8,2.07305243]
[1768339928109,1.94877537,3209.8,3208.6,2.07305243]
[1768339928309,0.244,3209.7,3208.8,2.07305243]
[1768339928514,2.19277537,3209.7,3208.8,2.07305243]
[1768339929899,0.244,3209.6,3208.8,2.07305243]
[1768339930116,0.244,3209.6,3209.0,2.07305243]
[1768339930413,0.244,3209.5,3209.0,2.07305243]
[1768339931236,0.002,3209.6,3209.0,2.07305243]
[1768339931519,0.244,3209.5,3209.2,2.07305243]
[1768339931723,0.244,3209.5,3208.5,0.00080224]
[1768339931724,0.244,3209.5,3208.6,2.07305243]
[1768339932898,0.244,3209.4,3208.6,2.07305243]
[1768339934424,0.244,3209.3,3208.7,2.07305243]
[1768339934730,0.24159967,3209.3,3208.7,2.07305243]
[1768339934932,0.22012468,3209.3,3208.9,2.07305243]
[1768339935723,0.21376102,3209.3,3208.9,2.07305243]
[1768339937231,0.002,3209.6,3208.9,2.07305243]
[1768339937532,0.244,3209.2,3208.9,2.07305243]
[1768339937732,0.10650458,3209.2,3209.0,2.08898493]
[1768339937944,0.002,3209.6,3209.1,0.20889849]
[1768339938094,0.244,3209.5,3209.1,0.20889849]
[1768339938289,2.23034249,3209.5,3208.8,0.20730524]
[1768339938496,1.98634249,3209.4,3208.5,2.08978717]
[1768339938745,1.98634249,3209.4,3208.5,16.58978717]
[1768339939059,1.98634249,3209.4,3208.6,2.08898493]
[1768339939638,5.10219469,3209.4,3208.6,2.08898493]
[1768339940795,1.98634249,3209.4,3208.6,2.08898493]
[1768339940992,1.98634249,3209.3,3208.5,0.00080224]
[1768339941405,3.11575144,3209.5,3208.5,2.08978717]
[1768339941605,0.244,3209.4,3208.5,2.08978717]
[1768339941816,2.23034249,3209.4,3208.5,2.08978717]
[1768339942534,2.23034249,3209.4,3208.8,0.001]
[1768339942759,1.98634249,3209.1,3208.5,0.00080224]
[1768339943611,1.98634249,3208.9,3208.5,0.00080224]
[1768339943942,1.98634249,3208.7,3208.5,0.00080224]
[1768339947229,5.10288024,3208.7,3208.5,0.00080224]
[1768339947745,1.98634249,3208.6,3208.5,0.00080224]
[1768339947925,1.98634249,3208.5,3207.7,14.501]
[1768339948125,1.98634249,3208.5,3207.8,3.73398244]
[1768339948346,5.10296807,3208.6,3207.8,1.64499751]
[1768339948547,5.10296807,3208.6,3207.8,3.73398244]
[1768339948751,1.98634249,3208.5,3207.8,1.64499751]
[1768339948978,1.98634249,3208.5,3207.7,2.08998493]
[1768339949252,5.10290067,3208.7,3207.7,2.08998493]
[1768339949551,1.98634249,3208.6,3207.7,2.08998493]
[1768339949846,5.10306369,3208.5,3207.7,2.08998493]
[1768339950043,1.98634249,3208.5,3207.7,3.94388094]
[1768339950545,1.98634249,3208.5,3207.8,2.08898493]
[1768339950750,5.1028923,3208.7,3207.8,2.08898493]
[1768339951049,1.98634249,3208.7,3207.8,2.08898493]
[1768339951259,5.10289153,3208.7,3207.9,2.48337302]
[1768339951461,1.98634249,3208.7,3207.9,2.48337302]
[1768339952438,5.102896,3208.7,3207.9,2.48337302]
[1768339953374,1.98634249,3208.6,3207.9,2.48337302]
[1768339953946,1.98634249,3208.6,3208.2,0.001]
[1768339954538,0.00080224,3208.9,3208.2,2.08998493]
[1768339954539,1.98714473,3208.9,3208.2,2.08998493]
[1768339954734,2.23134249,3208.8,3208.3,0.67434591]
[1768339954939,0.245,3208.8,3208.3,2.09814356]
[1768339956369,0.245,3208.8,3208.2,0.001]
[1768339956370,2.0034816,3208.6,3208.2,0.001]
[1768339957163,2.0034816,3208.6,3207.7,0.001]
[1768339957344,2.0034816,3208.6,3207.8,1.85481187]
[1768339957757,2.0034816,3208.6,3207.7,2.09914356]
[1768339958540,2.0034816,3208.5,3207.7,2.09914356]
[1768339959634,2.0034816,3208.5,3207.7,0.001]
[1768339960783,2.0034816,3208.4,3207.7,0.001]
[1768339961069,0.245,3208.3,3207.7,0.001]
[1768339961536,0.245,3208.3,3207.7,0.40581187]
[1768339961940,2.2484816,3208.3,3207.7,0.001]
[1768339962142,2.2484816,3208.3,3207.6,1.94897513]
[1768339962450,2.2871154,3208.3,3207.6,1.94897513]
[1768339963350,2.0034816,3208.2,3207.6,1.94897513]
[1768339964355,2.0034816,3208.1,3207.6,1.94897513]
[1768339965174,2.0034816,3208.1,3207.4,0.001]
[1768339966471,2.0034816,3208.1,3207.9,0.001]
[1768339967447,5.12060504,3208.1,3207.9,0.001]
[1768339967750,2.0034816,3208.0,3207.4,0.001]
[1768339970077,2.0034816,3207.8,3207.4,0.001]
[1768339970465,0.245,3207.7,3207.4,0.001]
[1768339973085,0.245,3207.6,3207.4,0.001]
[1768339973283,2e-08,3207.6,3207.4,0.001]
[1768339973785,2.0034816,3208.1,3207.7,0.02147486]
[1768339973964,0.84187734,3208.0,3207.7,0.02147486]
[1768339974985,2.84535894,3208.0,3207.7,0.02147486]
[1768339975553,2.77214794,3208.0,3207.7,0.02147486]
[1768339976579,6.69558955,3207.9,3207.1,0.001]
[1768339976797,2.0034816,3207.7,3207.1,0.001]
[1768339978387,2.0034816,3208.1,3207.1,2.09914356]
[1768339978576,0.002,3207.7,3207.1,2.09914356]
[1768339979157,0.002,3207.7,3207.1,0.001]
[1768339979362,2.0054816,3207.7,3207.1,0.21091436]
[1768339979985,0.002,3207.7,3207.1,2.30905792]
[1768339980185,0.002,3207.7,3206.6,14.5]
[1768339980186,2.0034816,3207.4,3206.6,14.5]
[1768339980395,2.0034816,3207.5,3206.4,2.09814356]
[1768339980550,2.0034816,3207.5,3206.6,2.09814356]
[1768339980755,0.245,3207.4,3206.7,2.35239944]
[1768339980962,0.002,3207.7,3206.8,2.09814356]
[1768339981301,0.245,3207.6,3206.8,2.09814356]
[1768339981681,0.245,3207.6,3207.0,2.09814356]
[1768339982252,2.0034816,3208.2,3207.6,0.07923699]
[1768339982458,2.2484816,3208.1,3207.6,0.07923699]
[1768339982786,0.245,3208.1,3207.6,2.17738055]
[1768339982985,0.245,3208.1,3207.6,2.39511861]
[1768339983189,2.0034816,3208.2,3207.6,0.07923699]
[1768339983386,0.245,3208.1,3207.6,2.17738055]
[1768339983906,0.245,3208.1,3207.6,0.07923699]
[1768339984108,0.245,3208.1,3207.4,2.09814356]
[1768339984314,2.0054816,3208.3,3207.4,2.09814356]
[1768339984610,0.245,3208.2,3207.5,2.30795792]
[1768339984788,0.245,3208.1,3207.5,2.30795792]
[1768339984965,0.245,3208.0,3207.5,2.30795792]
[1768339986369,5.12240163,3208.3,3207.5,2.30795792]
[1768339986678,0.245,3208.2,3207.5,2.30795792]
[1768339987001,0.245,3208.2,3207.6,0.23079579]
[1768339987231,0.002,3208.6,3208.1,1.99164367]
[1768339987512,6.59464617,3208.5,3207.6,0.244]
[1768339987799,0.03896022,3208.4,3207.6,1.99164367]
[1768339988311,5.05276673,3208.3,3207.4,1.99164367]
[1768339988717,1.93585123,3208.2,3207.4,1.99164367]